fUSD/lending_fUSD_20240614
["ID","MTS","AMOUNT","RATE_DAILY","PERIOD"]
[329416677,1718328695560,-500.0,0.00024931,3]
[329416678,1718328695575,-500.0,0.00024931,3]
[329416679,1718328695593,-500.0,0.00024931,3]
[329416680,1718328695606,-591.59,0.00024931,3]
[329416681,1718328695618,-500.0,0.00024931,3]
[329416682,1718328695645,-500.0,0.00024931,3]
[329416683,1718328695666,-500.0,0.00024931,3]
[329416684,1718328695684,-659.35,0.00024931,3]
[329416685,1718328695698,-500.0,0.00024931,3]
[329416686,1718328695721,-500.0,0.00024931,3]
[329416687,1718328695743,-500.0,0.00024931,3]
[329416688,1718328695764,-569.74,0.00024931,3]
[329416689,1718328695782,-549.56,0.00024931,3]
[329416690,1718328695797,-621.41,0.00024931,3]
[329416691,1718328695811,-500.0,0.00024931,3]
[329416692,1718328695825,-630.44,0.00024931,3]
[329416693,1718328695841,-500.0,0.00024931,3]
[329416694,1718328695854,-500.0,0.00024931,3]
[329416695,1718328695866,-500.0,0.00024931,3]
[329416696,1718328695878,-500.0,0.00024931,3]
[329416697,1718328695893,-500.0,0.00024931,3]
[329416698,1718328695906,-500.0,0.00024931,3]
[329416699,1718328695936,-500.0,0.00024931,3]
[329416700,1718328695960,-500.0,0.00024931,3]
[329416701,1718328695977,-2024.27,0.00024931,3]
[329416702,1718328696003,-550.31,0.00024931,3]
[329416703,1718328696020,-661.6,0.00024931,3]
[329416704,1718328696035,-500.0,0.00024931,3]
[329416705,1718328696066,-1051.97,0.00024931,3]
[329416706,1718328696078,-500.0,0.00024931,3]
[329416707,1718328696119,-225.74764798,0.00024931,3]
[329416708,1718328696130,-196.42665585,0.00024931,3]
[329416709,1718328696157,-2230.14,0.00024931,3]
[329416710,1718328696169,-560.51,0.00024931,3]
[329416711,1718328696182,-699.68,0.00024931,3]
[329416712,1718328696194,-500.0,0.00024931,3]
[329416713,1718328696205,-500.0,0.00024931,3]
[329416714,1718328696218,-1026.29,0.00024931,3]
[329416715,1718328696229,-6651.01,0.00024931,3]
[329416716,1718328696240,-500.0,0.00024931,3]
[329416717,1718328696257,-500.0,0.00024931,3]
[329416718,1718328696275,-500.0,0.00024931,3]
[329416719,1718328696300,-905.81,0.00024931,3]
[329416720,1718328696311,-500.0,0.00024931,3]
[329416721,1718328696325,-500.0,0.00024931,3]
[329416722,1718328696343,-500.0,0.00024931,3]
[329416723,1718328696354,-807.05,0.00024931,3]
[329416724,1718328696372,-500.0,0.00024931,3]
[329416725,1718328696391,-2365.65,0.00024931,3]
[329416726,1718328696403,-500.0,0.00024931,3]
[329416727,1718328696414,-179.16919,0.00024931,7]
[329416728,1718328696427,-179.16919,0.00024931,7]
[329416729,1718328696438,-500.0,0.00024931,3]
[329416730,1718328696452,-500.0,0.00024931,3]
[329416731,1718328696465,-593.15,0.00024931,3]
[329416732,1718328696477,-179.16919,0.00024931,7]
[329416733,1718328696492,-179.16919,0.00024931,7]
[329416734,1718328696520,-438.61738162,0.00024931,3]
[329416735,1718328696562,-2105.93,0.00024931,3]
[329416736,1718328696591,-500.0,0.00024931,3]
[329416737,1718328696603,-843.89,0.00024931,3]
[329416738,1718328696615,-500.0,0.00024931,3]
[329416739,1718328696627,-500.0,0.00024931,3]
[329416740,1718328696639,-500.0,0.00024931,3]
[329416741,1718328696664,-500.0,0.00024931,3]
[329416742,1718328696688,-598.1,0.00024931,3]
[329416743,1718328696699,-7638.61,0.00024931,3]
[329416744,1718328696711,-699.16,0.00024931,3]
[329416745,1718328696722,-3190.81,0.00024931,3]
[329416746,1718328696747,-3649.11,0.00024931,3]
[329416747,1718328696759,-500.0,0.00024931,3]
[329416748,1718328696771,-500.0,0.00024931,3]
[329416749,1718328696786,-1217.69,0.00024931,3]
[329416750,1718328696797,-2721.15,0.00024931,3]
[329416751,1718328696810,-500.0,0.00024931,3]
[329416752,1718328696822,-500.0,0.00024931,3]
[329416753,1718328696836,-500.0,0.00024931,3]
[329416754,1718328696847,-500.0,0.00024931,3]
[329416755,1718328696859,-500.0,0.00024931,3]
[329416756,1718328696884,-1346.53,0.00024931,3]
[329416757,1718328696928,-1011.07,0.00024931,3]
[329416758,1718328696940,-500.0,0.00024931,3]
[329416759,1718328696956,-13586.59,0.00024931,3]
[329416760,1718328696967,-680.82,0.00024931,3]
[329416761,1718328696978,-2862.08,0.00024931,3]
[329416762,1718328696989,-2933.81,0.00024931,3]
[329416763,1718328697002,-761.51,0.00024931,3]
[329416764,1718328697015,-500.0,0.00024931,3]
[329416765,1718328697031,-500.0,0.00024931,3]
[329416766,1718328697043,-2631.81,0.00024931,3]
[329416767,1718328697064,-563.33,0.00024931,3]
[329416768,1718328697103,-1642.68,0.00024931,3]
[329416769,1718328697121,-1745.88,0.00024931,3]
[329416770,1718328697154,-500.0,0.00024931,3]
[329416771,1718328697176,-500.0,0.00024931,3]
[329416772,1718328697189,-500.0,0.00024931,3]
[329416773,1718328697204,-177.98,0.00024931,3]
[329416774,1718328697218,-500.0,0.00024931,3]
[329416775,1718328697229,-1902.96,0.00024931,3]
[329416776,1718328697245,-773.16,0.00024931,3]
[329416777,1718328697260,-2172.15,0.00024931,3]
[329416778,1718328697272,-1825.98,0.00024931,3]
[329416779,1718328697286,-500.0,0.00024931,3]
[329416780,1718328697302,-500.0,0.00024931,3]
[329416781,1718328697322,-679.92,0.00024931,3]
[329416782,1718328697335,-500.0,0.00024931,3]
[329416783,1718328697350,-986.43,0.00024931,3]
[329416784,1718328697381,-500.0,0.00024931,3]
[329416785,1718328697398,-1829.1,0.00024931,3]
[329416786,1718328697415,-1832.39,0.00024931,3]
[329416787,1718328697436,-1082.5,0.00024931,3]
[329416788,1718328697450,-638.87,0.00024931,3]
[329416789,1718328697467,-2157.56,0.00024931,3]
[329416790,1718328697492,-906.62,0.00024931,3]
[329416791,1718328697744,-500.0,0.00024931,3]
[329416792,1718328697779,-500.0,0.00024931,3]
[329416793,1718328697792,-690.46,0.00024931,3]
[329416794,1718328697807,-500.0,0.00024931,3]
[329416795,1718328697840,-500.0,0.00024931,3]
[329416796,1718328697852,-988.9,0.00024931,3]
[329416797,1718328697873,-731.35,0.00024931,3]
[329416798,1718328697898,-500.0,0.00024931,3]
[329416799,1718328697909,-613.74,0.00024931,3]
[329416800,1718328697924,-27287.16,0.00024931,3]
[329416801,1718328697948,-500.0,0.00024931,3]
[329416802,1718328697960,-500.0,0.00024931,3]
[329416803,1718328697981,-500.0,0.00024931,3]
[329416804,1718328697991,-500.0,0.00024931,3]
[329416805,1718328698002,-910.96,0.00024931,3]
[329416806,1718328698015,-500.0,0.00024931,3]
[329416807,1718328698045,-6932.08,0.00024931,3]
[329416808,1718328698080,-974.92,0.00024931,3]
[329416809,1718328698098,-500.0,0.00024931,3]
[329416810,1718328698118,-2616.08,0.00024931,3]
[329416811,1718328698137,-1080.82,0.00024931,3]
[329416812,1718328698184,-817.09,0.00024931,3]
[329416813,1718328698205,-709.94,0.00024931,3]
[329416814,1718328698220,-500.0,0.00024931,3]
[329416815,1718328698263,-500.0,0.00024931,3]
[329416816,1718328698288,-2321.35,0.00024931,3]
[329416817,1718328698302,-1643.14,0.00024931,3]
[329416818,1718328698314,-6948.28,0.00024931,3]
[329416819,1718328698324,-500.0,0.00024931,3]
[329416820,1718328698336,-2845.46,0.00024931,3]
[329416821,1718328698348,-500.0,0.00024931,3]
[329416822,1718328698362,-1414.89,0.00024931,3]
[329416823,1718328698375,-500.0,0.00024931,3]
[329416824,1718328698391,-500.0,0.00024931,3]
[329416825,1718328698409,-13659.59,0.00024931,3]
[329416826,1718328698449,-1393.56,0.00024931,3]
[329416827,1718328698474,-1408.71,0.00024931,3]
[329416828,1718328698529,-2259.66,0.00024931,3]
[329416829,1718328698560,-1111.31,0.00024931,3]
[329416830,1718328698575,-500.0,0.00024931,3]
[329416831,1718328698602,-500.0,0.00024931,3]
[329416832,1718328698618,-500.0,0.00024931,3]
[329416833,1718328698640,-500.0,0.00024931,3]
[329416834,1718328698662,-500.0,0.00024931,3]
[329416835,1718328698677,-10075.29,0.00024931,3]
[329416836,1718328698693,-500.0,0.00024931,3]
[329416837,1718328698715,-500.0,0.00024931,3]
[329416838,1718328698742,-500.0,0.00024931,3]
[329416839,1718328698785,-3909.82,0.00024931,3]
[329416840,1718328698799,-943.27,0.00024931,3]
[329416841,1718328698809,-1168.64,0.00024931,3]
[329416842,1718328698831,-1483.04,0.00024931,3]
[329416843,1718328698843,-500.0,0.00024931,3]
[329416844,1718328698855,-500.0,0.00024931,3]
[329416845,1718328698866,-4875.13,0.00024931,3]
[329416846,1718328698877,-500.0,0.00024931,3]
[329416847,1718328698891,-500.0,0.00024931,3]
[329416848,1718328698903,-651.52,0.00024931,3]
[329416849,1718328698920,-1146.24,0.00024931,3]
[329416850,1718328698932,-500.0,0.00024931,3]
[329416851,1718328698943,-2483.67,0.00024931,3]
[329416852,1718328698953,-1056.72,0.00024931,3]
[329416853,1718328698968,-500.0,0.00024931,3]
[329416854,1718328698979,-3759.26,0.00024931,3]
[329416855,1718328698998,-2980.85,0.00024931,3]
[329416856,1718328699010,-500.0,0.00024931,3]
[329416857,1718328699033,-500.0,0.00024931,3]
[329416858,1718328699047,-424.16900121,0.00024931,3]
[329416859,1718328699061,-500.0,0.00024931,3]
[329416860,1718328699071,-2040.13,0.00024931,3]
[329416861,1718328699091,-726.56,0.00024931,3]
[329416862,1718328699104,-949.95,0.00024931,3]
[329416863,1718328699115,-1419.27,0.00024931,3]
[329416864,1718328699127,-1026.42,0.00024931,3]
[329416865,1718328699137,-500.0,0.00024931,3]
[329416866,1718328699148,-500.0,0.00024931,3]
[329416867,1718328699159,-1958.96,0.00024931,3]
[329416868,1718328699169,-500.0,0.00024931,3]
[329416869,1718328699187,-500.0,0.00024931,3]
[329416870,1718328699224,-399.69,0.00024931,3]
[329416871,1718328699235,-1457.15,0.00024931,3]
[329416872,1718328699255,-500.0,0.00024931,3]
[329416873,1718328699268,-2166.24,0.00024931,3]
[329416874,1718328699285,-1585.82,0.00024931,3]
[329416875,1718328699297,-1164.45,0.00024931,3]
[329416876,1718328699313,-1370.89,0.00024931,3]
[329416877,1718328699328,-500.0,0.00024931,3]
[329416878,1718328699361,-500.0,0.00024931,3]
[329416879,1718328699409,-500.0,0.00024931,3]
[329416880,1718328699434,-500.0,0.00024931,3]
[329416881,1718328699461,-979.9,0.00024931,3]
[329416882,1718328699494,-1246.72,0.00024931,3]
[329416883,1718328699513,-617.62,0.00024931,3]
[329416884,1718328699525,-1310.68,0.00024931,3]
[329416885,1718328699543,-976.37,0.00024931,3]
[329416886,1718328699558,-500.0,0.00024931,3]
[329416887,1718328699582,-928.5,0.00024931,3]
[329416888,1718328699593,-2479.24,0.00024931,3]
[329416889,1718328699614,-1915.78,0.00024931,3]
[329416890,1718328699641,-500.0,0.00024931,3]
[329416891,1718328699653,-9450.18,0.00024931,3]
[329416892,1718328699665,-758.88,0.00024931,3]
[329416893,1718328699704,-500.0,0.00024931,3]
[329416894,1718328699726,-4571.95,0.00024931,3]
[329416895,1718328699744,-500.0,0.00024931,3]
[329416896,1718328699774,-1010.1,0.00024931,3]
[329416897,1718328699787,-3729.75,0.00024931,3]
[329416898,1718328699805,-1160.9,0.00024931,3]
[329416899,1718328699818,-1291.17,0.00024931,3]
[329416900,1718328699845,-1442.54,0.00024931,3]
[329416901,1718328699860,-500.0,0.00024931,3]
[329416902,1718328699886,-1078.82,0.00024931,3]
[329416903,1718328699905,-1437.83,0.00024931,3]
[329416904,1718328699932,-3179.39,0.00024931,3]
[329416905,1718328699965,-4644.91,0.00024931,3]
[329416906,1718328699985,-660.45,0.00024931,3]
[329416907,1718328699998,-500.0,0.00024931,3]
[329416908,1718328700015,-500.0,0.00024931,3]
[329416909,1718328700044,-500.0,0.00024931,3]
[329416910,1718328700069,-3968.87,0.00024931,3]
[329416911,1718328700093,-1085.81,0.00024931,3]
[329416912,1718328700106,-2460.17,0.00024931,3]
[329416913,1718328700125,-3852.04,0.00024931,3]
[329416914,1718328700137,-500.0,0.00024931,3]
[329416915,1718328700150,-4640.65,0.00024931,3]
[329416916,1718328700162,-167.6074459,0.00024931,3]
[329416917,1718328700196,-855.86,0.00024931,3]
[329416918,1718328700207,-164.775248,0.00024931,7]
[329416919,1718328700219,-164.775248,0.00024931,7]
[329416920,1718328700241,-1149.69,0.00024931,3]
[329416921,1718328700268,-2477.54,0.00024931,3]
[329416922,1718328700287,-781.38,0.00024931,3]
[329416923,1718328700306,-2739.81,0.00024931,3]
[329416924,1718328700323,-500.0,0.00024931,3]
[329416925,1718328700368,-164.775248,0.00024931,7]
[329416926,1718328700405,-164.775248,0.00024931,7]
[329416927,1718328700418,-500.0,0.00024931,3]
[329416928,1718328700434,-22917.63,0.00024931,3]
[329416929,1718328700446,-2363.24,0.00024931,3]
[329416930,1718328700463,-2489.52,0.00024931,3]
[329416931,1718328700487,-801.82,0.00024931,3]
[329416932,1718328700500,-1037.71,0.00024931,3]
[329416933,1718328700518,-1182.53,0.00024931,3]
[329416934,1718328700530,-500.0,0.00024931,3]
[329416935,1718328700556,-671.04,0.00024931,3]
[329416936,1718328700574,-2448.61,0.00024931,3]
[329416937,1718328700586,-709.17,0.00024931,3]
[329416938,1718328700598,-2250.55,0.00024931,3]
[329416939,1718328700609,-500.0,0.00024931,3]
[329416940,1718328700636,-1131.25,0.00024931,3]
[329416941,1718328700649,-663.02,0.00024931,3]
[329416942,1718328700672,-2614.62,0.00024931,3]
[329416943,1718328700684,-500.0,0.00024931,3]
[329416944,1718328700701,-500.0,0.00024931,3]
[329416945,1718328700741,-560.42,0.00024931,3]
[329416946,1718328700752,-500.0,0.00024931,3]
[329416947,1718328700776,-500.0,0.00024931,3]
[329416948,1718328700801,-3845.21,0.00024931,3]
[329416949,1718328700816,-271.44104257,0.00024931,3]
[329416950,1718328700828,-967.09,0.00024931,3]
[329416951,1718328700842,-500.0,0.00024931,3]
[329416952,1718328700858,-3200.03,0.00024931,3]
[329416953,1718328700882,-250.0,0.00024931,3]
[329416954,1718328700898,-500.0,0.00024931,3]
[329416955,1718328700915,-714.39,0.00024931,3]
[329416956,1718328700947,-2771.64,0.00024931,3]
[329416957,1718328700966,-6182.51,0.00024931,3]
[329416958,1718328700978,-500.0,0.00024931,3]
[329416959,1718328700993,-1117.03,0.00024931,3]
[329416960,1718328701005,-500.0,0.00024931,3]
[329416961,1718328701019,-818.88,0.00024931,3]
[329416962,1718328701032,-500.0,0.00024931,3]
[329416963,1718328701050,-13361.61,0.00024931,3]
[329416964,1718328701067,-500.0,0.00024931,3]
[329416965,1718328701078,-500.0,0.00024931,3]
[329416966,1718328701099,-1181.16,0.00024931,3]
[329416967,1718328701110,-500.0,0.00024931,3]
[329416968,1718328701122,-500.0,0.00024931,3]
[329416969,1718328701136,-500.0,0.00024931,3]
[329416970,1718328701158,-740.73,0.00024931,3]
[329416971,1718328701190,-584.95,0.00024931,3]
[329416972,1718328701206,-4766.45,0.00024931,3]
[329416973,1718328701218,-500.0,0.00024931,3]
[329416974,1718328701239,-932.3,0.00024931,3]
[329416975,1718328701268,-151.0,0.00024931,7]
[329416976,1718328701282,-151.0,0.00024931,7]
[329416977,1718328701296,-151.0,0.00024931,7]
[329416978,1718328701310,-151.0,0.00024931,7]
[329416979,1718328701332,-500.0,0.00024931,3]
[329416980,1718328701347,-2700.76,0.00024931,3]
[329416981,1718328701358,-500.0,0.00024931,3]
[329416982,1718328701370,-500.0,0.00024931,3]
[329416983,1718328701383,-7429.21253047,0.00025,2]
[329416984,1718328701402,-5581.31285162,0.00025,2]
[329416985,1718328701417,-150.0,0.00025068,2]
[329416986,1718328701441,-208.03,0.00025068,2]
[329416987,1718328701452,-324.13611751,0.00025187,2]
[329416988,1718328701463,-500.0,0.00025204,3]
[329416989,1718328701488,-500.0,0.00025205,3]
[329416990,1718328701502,-500.0,0.00025205,3]
[329416991,1718328701519,-500.0,0.00025205,3]
[329416992,1718328701544,-500.0,0.00025205,3]
[329416993,1718328701557,-452.70732478,0.00025205,3]
[329416994,1718328701570,-500.0,0.00025205,3]
[329416995,1718328701582,-500.0,0.00025205,3]
[329416996,1718328701602,-500.0,0.00025205,3]
[329416997,1718328701615,-500.0,0.00025205,3]
[329416998,1718328701628,-500.0,0.00025205,3]
[329416999,1718328701646,-500.0,0.00025205,3]
[329417000,1718328701672,-500.0,0.00025205,3]
[329417001,1718328701683,-500.0,0.00025205,3]
[329417002,1718328701696,-500.0,0.00025205,3]
[329417003,1718328701707,-500.0,0.00025205,3]
[329417004,1718328701746,-500.0,0.00025205,3]
[329417005,1718328701767,-500.0,0.00025205,3]
[329417006,1718328701781,-500.0,0.00025205,3]
[329417007,1718328701798,-500.0,0.00025205,3]
[329417008,1718328701817,-368.33,0.00025205,3]
[329417009,1718328701851,-500.0,0.00025205,3]
[329417010,1718328701866,-500.0,0.00025205,3]
[329417011,1718328701888,-500.0,0.00025205,3]
[329417012,1718328701917,-500.0,0.00025205,3]
[329417013,1718328701936,-500.0,0.00025205,3]
[329417014,1718328701968,-500.0,0.00025205,3]
[329417015,1718328701998,-500.0,0.00025205,3]
[329417016,1718328702011,-500.0,0.00025205,3]
[329417017,1718328702029,-500.0,0.00025205,3]
[329417018,1718328702044,-500.0,0.00025205,3]
[329417019,1718328702059,-500.0,0.00025205,3]
[329417020,1718328702071,-182.74544268,0.00025205,3]
[329417021,1718328702096,-500.0,0.00025205,3]
[329417022,1718328702108,-500.0,0.00025205,3]
[329417023,1718328702134,-500.0,0.00025205,3]
[329417024,1718328702152,-500.0,0.00025205,3]
[329417025,1718328702170,-500.0,0.00025205,3]
[329417026,1718328702196,-500.0,0.00025205,3]
[329417027,1718328702210,-500.0,0.00025205,3]
[329417028,1718328702228,-500.0,0.00025205,3]
[329417029,1718328702249,-500.0,0.00025205,3]
[329417030,1718328702271,-500.0,0.00025205,3]
[329417031,1718328702285,-549.81013651,0.00025205,3]
[329417032,1718328702296,-500.0,0.00025205,3]
[329417033,1718328702311,-500.0,0.00025205,3]
[329417034,1718328702323,-500.0,0.00025205,3]
[329417035,1718328702345,-500.0,0.00025205,3]
[329417036,1718328702387,-500.0,0.00025205,3]
[329417037,1718328702402,-566.65197489,0.00025205,3]
[329417038,1718328702420,-500.0,0.00025205,3]
[329417039,1718328702448,-500.0,0.00025205,3]
[329417040,1718328702465,-500.0,0.00025205,3]
[329417041,1718328702498,-500.0,0.00025205,3]
[329417042,1718328702508,-500.0,0.00025205,3]
[329417043,1718328702532,-500.0,0.00025205,3]
[329417044,1718328702547,-500.0,0.00025205,3]
[329417045,1718328702567,-500.0,0.00025205,3]
[329417046,1718328702578,-500.0,0.00025205,3]
[329417047,1718328702590,-500.0,0.00025205,3]
[329417048,1718328702608,-500.0,0.00025205,3]
[329417049,1718328702624,-500.0,0.00025205,3]
[329417050,1718328702637,-500.0,0.00025205,3]
[329417051,1718328702654,-500.0,0.00025205,3]
[329417052,1718328702671,-500.0,0.00025205,3]
[329417053,1718328702697,-500.0,0.00025205,3]
[329417054,1718328702717,-500.0,0.00025205,3]
[329417055,1718328702759,-500.0,0.00025205,3]
[329417056,1718328702780,-500.0,0.00025205,3]
[329417057,1718328702790,-500.0,0.00025205,3]
[329417058,1718328702810,-500.0,0.00025205,3]
[329417059,1718328702821,-500.0,0.00025205,3]
[329417060,1718328702839,-500.0,0.00025205,3]
[329417061,1718328702877,-535.98,0.00025205,3]
[329417062,1718328702890,-500.0,0.00025205,3]
[329417063,1718328702909,-500.0,0.00025205,3]
[329417064,1718328702930,-500.0,0.00025205,3]
[329417065,1718328702941,-500.0,0.00025205,3]
[329417066,1718328702955,-500.0,0.00025205,3]
[329417067,1718328702972,-500.0,0.00025205,3]
[329417068,1718328702992,-500.0,0.00025205,3]
[329417069,1718328703009,-500.0,0.00025205,3]
[329417070,1718328703029,-500.0,0.00025205,3]
[329417071,1718328703041,-500.0,0.00025205,3]
[329417072,1718328703058,-200.0,0.00025205,3]
[329417073,1718328703076,-500.0,0.00025205,3]
[329417074,1718328703089,-500.0,0.00025205,3]
[329417075,1718328703101,-500.0,0.00025205,3]
[329417076,1718328703123,-500.0,0.00025205,3]
[329417077,1718328703146,-500.0,0.00025205,3]
[329417078,1718328703160,-500.0,0.00025205,3]
[329417079,1718328703181,-500.0,0.00025205,3]
[329417080,1718328703211,-500.0,0.00025205,3]
[329417081,1718328703229,-539.14,0.00025205,3]
[329417082,1718328703247,-500.0,0.00025205,3]
[329417083,1718328703261,-500.0,0.00025205,3]
[329417084,1718328703281,-523.2543716,0.00025205,3]
[329417085,1718328703294,-500.0,0.00025205,3]
[329417086,1718328703313,-500.0,0.00025205,3]
[329417087,1718328703333,-500.0,0.00025205,3]
[329417088,1718328703349,-539.62,0.00025205,3]
[329417089,1718328703383,-500.0,0.00025205,3]
[329417090,1718328703398,-500.0,0.00025205,3]
[329417091,1718328703411,-500.0,0.00025205,3]
[329417092,1718328703436,-476.0406665,0.00025205,3]
[329417093,1718328703453,-804.49,0.00025205,3]
[329417094,1718328703466,-500.0,0.00025205,3]
[329417095,1718328703498,-500.0,0.00025205,3]
[329417096,1718328703512,-500.0,0.00025205,3]
[329417097,1718328703528,-500.0,0.00025205,3]
[329417098,1718328703545,-500.0,0.00025205,3]
[329417099,1718328703565,-572.62,0.00025205,3]
[329417100,1718328703589,-500.0,0.00025205,2]
[329417101,1718328703618,-500.0,0.00025205,3]
[329417102,1718328703652,-500.0,0.00025205,3]
[329417103,1718328703667,-500.0,0.00025205,3]
[329417104,1718328703680,-500.0,0.00025205,3]
[329417105,1718328703699,-500.0,0.00025205,3]
[329417106,1718328703719,-500.0,0.00025205,3]
[329417107,1718328703751,-774.54,0.00025205,3]
[329417108,1718328703763,-986.18,0.00025205,3]
[329417109,1718328703774,-500.0,0.00025205,3]
[329417110,1718328703788,-500.0,0.00025205,3]
[329417111,1718328703801,-500.0,0.00025205,3]
[329417112,1718328703814,-500.0,0.00025205,3]
[329417113,1718328703834,-500.0,0.00025205,3]
[329417114,1718328703858,-500.0,0.00025205,3]
[329417115,1718328703873,-500.0,0.00025205,3]
[329417116,1718328703904,-565.82357777,0.00025205,3]
[329417117,1718328703916,-500.0,0.00025205,3]
[329417118,1718328703928,-1157.92,0.00025205,3]
[329417119,1718328703940,-500.0,0.00025205,3]
[329417120,1718328703955,-500.0,0.00025205,3]
[329417121,1718328703969,-500.0,0.00025205,3]
[329417122,1718328703980,-500.0,0.00025205,3]
[329417123,1718328703993,-500.0,0.00025205,3]
[329417124,1718328704008,-500.0,0.00025205,3]
[329417125,1718328704022,-500.0,0.00025205,3]
[329417126,1718328704046,-500.0,0.00025205,3]
[329417127,1718328704064,-500.0,0.00025205,3]
[329417128,1718328704084,-500.0,0.00025205,3]
[329417129,1718328704108,-500.0,0.00025205,3]
[329417130,1718328704119,-500.0,0.00025205,3]
[329417131,1718328704146,-500.0,0.00025205,3]
[329417132,1718328704159,-410.42,0.00025205,3]
[329417133,1718328704174,-500.0,0.00025205,3]
[329417134,1718328704189,-500.0,0.00025205,3]
[329417135,1718328704201,-500.0,0.00025205,3]
[329417136,1718328704227,-500.0,0.00025205,3]
[329417137,1718328704241,-500.0,0.00025205,3]
[329417138,1718328704251,-500.0,0.00025205,3]
[329417139,1718328704264,-500.0,0.00025205,3]
[329417140,1718328704275,-501.69,0.00025205,3]
[329417141,1718328704288,-500.0,0.00025205,3]
[329417142,1718328704299,-500.0,0.00025205,3]
[329417143,1718328704309,-500.0,0.00025205,3]
[329417144,1718328704334,-500.0,0.00025205,3]
[329417145,1718328704346,-500.0,0.00025205,3]
[329417146,1718328704365,-500.0,0.00025205,3]
[329417147,1718328704376,-500.0,0.00025205,3]
[329417148,1718328704402,-500.0,0.00025205,3]
[329417149,1718328704416,-611.61,0.00025205,3]
[329417150,1718328704428,-583.88,0.00025205,3]
[329417151,1718328704441,-500.0,0.00025205,3]
[329417152,1718328704451,-500.0,0.00025205,3]
[329417153,1718328704470,-500.0,0.00025205,3]
[329417154,1718328704488,-500.0,0.00025205,3]
[329417155,1718328704502,-500.0,0.00025205,3]
[329417156,1718328704520,-500.0,0.00025205,3]
[329417157,1718328704546,-548.53,0.00025205,3]
[329417158,1718328704729,-500.0,0.00025205,3]
[329417159,1718328704752,-500.0,0.00025205,3]
[329417160,1718328704772,-500.0,0.00025205,3]
[329417161,1718328704786,-692.1,0.00025205,3]
[329417162,1718328704797,-500.0,0.00025205,3]
[329417163,1718328704809,-500.0,0.00025205,3]
[329417164,1718328704819,-634.92,0.00025205,3]
[329417165,1718328704840,-500.0,0.00025205,3]
[329417166,1718328704853,-500.0,0.00025205,3]
[329417167,1718328704867,-242.95319852,0.00025205,3]
[329417168,1718328704888,-588.02,0.00025205,3]
[329417169,1718328704901,-500.0,0.00025205,3]
[329417170,1718328704914,-500.0,0.00025205,3]
[329417171,1718328704943,-500.0,0.00025205,3]
[329417172,1718328704957,-660.68,0.00025205,3]
[329417173,1718328704973,-960.66,0.00025205,3]
[329417174,1718328704984,-500.0,0.00025205,3]
[329417175,1718328705000,-500.0,0.00025205,3]
[329417176,1718328705015,-500.0,0.00025205,3]